bitfinex/quotes_BTCUSD_20240729
["timestamp","ask_amount","ask_price","bid_price","bid_amount"]
[1722219430609,0.002,69119.0,69118.0,1.64831845]
[1722219430822,0.002,69119.0,69118.0,1.56068317]
[1722219431039,0.002,69119.0,69118.0,1.63431845]
[1722219431241,0.002,69119.0,69118.0,1.72172845]
[1722219431448,0.02471492,69119.0,69118.0,1.73572845]
[1722219431667,0.02471492,69119.0,69118.0,1.64809317]
[1722219431870,0.02471492,69119.0,69118.0,1.33308317]
[1722219432109,0.02471492,69119.0,69118.0,1.48618317]
[1722219432316,0.02471492,69119.0,69118.0,1.50018317]
[1722219432533,0.002,69119.0,69118.0,1.50018317]
[1722219432757,0.002,69119.0,69118.0,1.91541109]
[1722219432973,0.05609572,69129.0,69128.0,1.071274]
[1722219433211,0.045,69129.0,69128.0,1.171274]
[1722219433412,0.045,69129.0,69128.0,1.20108752]
[1722219433413,0.05609572,69129.0,69128.0,1.20108752]
[1722219434055,0.045,69129.0,69128.0,0.96963352]
[1722219434274,0.045,69129.0,69128.0,1.1610269]
[1722219434512,0.045,69129.0,69128.0,1.6164909]
[1722219434965,0.00113802,69133.0,69132.0,1.599425]
[1722219435136,0.00113802,69133.0,69132.0,1.7811167]
[1722219435357,0.00113802,69133.0,69132.0,1.78876537]
[1722219435562,0.00113802,69133.0,69132.0,1.87640065]
[1722219435810,0.02384715,69133.0,69132.0,1.87640065]
[1722219436263,0.00113802,69133.0,69132.0,1.87640065]
[1722219436463,0.00113802,69133.0,69132.0,2.10784165]
[1722219436666,0.00816,69136.0,69135.0,1.27917428]
[1722219436869,0.00816,69136.0,69135.0,1.67189866]
[1722219437088,0.00142832,69136.0,69135.0,1.71391675]
[1722219437294,0.00142832,69136.0,69135.0,1.72310792]
[1722219437522,0.002,69139.0,69138.0,1.16784928]
[1722219437733,0.000995,69150.0,69145.0,1.05847128]
[1722219437927,0.000995,69150.0,69145.0,1.62126528]
[1722219438061,0.000995,69150.0,69145.0,1.92529055]
[1722219438273,0.000995,69150.0,69149.0,1.418312]
[1722219438483,0.02030497,69161.0,69160.0,0.467214]
[1722219438702,0.040232,69163.0,69162.0,0.376741]
[1722219438897,0.040232,69163.0,69162.0,0.476741]
[1722219439119,0.06293287,69163.0,69162.0,1.08748337]
[1722219439331,0.06293287,69163.0,69162.0,2.03853737]
[1722219439332,0.02270087,69163.0,69162.0,2.03853737]
[1722219439604,0.03246472,69194.0,69188.0,0.992216]
[1722219439605,0.0011,69194.0,69188.0,0.992216]
[1722219439818,0.0011,69194.0,69188.0,1.67939163]
[1722219440067,0.0011,69194.0,69188.0,0.47879242]
[1722219440068,0.01109572,69191.0,69188.0,0.47879242]
[1722219440292,0.024638,69194.0,69188.0,0.00748823]
[1722219440293,0.18318372,69189.0,69188.0,0.00748823]
[1722219440498,0.07135,69189.0,69188.0,0.578132]
[1722219440713,0.00815,69189.0,69188.0,0.81686572]
[1722219441137,0.00815,69189.0,69188.0,1.08710672]
[1722219441346,0.00815,69189.0,69188.0,0.58561272]
[1722219441560,0.00815,69189.0,69188.0,0.62141272]
[1722219442177,0.00815,69189.0,69188.0,0.65214372]
[1722219442377,0.00815,69189.0,69188.0,0.80524372]
[1722219442592,0.00815,69189.0,69188.0,1.03649672]
[1722219442788,0.00815,69189.0,69188.0,0.66614372]
[1722219443071,0.01924572,69189.0,69188.0,0.17410672]
[1722219443223,0.00815,69189.0,69188.0,0.17410672]
[1722219443486,0.00815,69189.0,69188.0,0.40535972]
[1722219443690,0.00815,69189.0,69188.0,0.42109072]
[1722219443870,0.00815,69189.0,69188.0,0.79144372]
[1722219444050,0.00815,69189.0,69188.0,0.89285372]
[1722219444251,0.00815,69189.0,69188.0,1.13810672]
[1722219444503,0.00815,69189.0,69188.0,1.536395]
[1722219444707,0.00815,69189.0,69188.0,1.687295]
[1722219445044,0.0011,69194.0,69193.0,1.39817328]
[1722219445255,0.0011,69194.0,69193.0,1.70997328]
[1722219445456,0.0011,69194.0,69193.0,1.39853136]
[1722219446904,0.0011,69194.0,69193.0,1.71740364]
[1722219447101,0.0011,69194.0,69193.0,1.42153136]
[1722219447534,0.0011,69194.0,69193.0,1.44953136]
[1722219447760,0.00067928,69194.0,69193.0,1.44953136]
[1722219447977,0.00067928,69194.0,69193.0,1.4578968]
[1722219448173,0.00067928,69194.0,69193.0,1.1739248]
[1722219448375,0.00067928,69194.0,69193.0,1.2033868]
[1722219448602,0.00067928,69194.0,69193.0,1.2173868]
[1722219448852,0.00067928,69194.0,69193.0,1.39243208]
[1722219449212,0.00067928,69194.0,69193.0,1.60966908]
[1722219449418,0.00067928,69194.0,69193.0,1.90706908]
[1722219449828,0.00067928,69194.0,69193.0,2.13830608]
[1722219450035,4.202,69200.0,69199.0,0.47476948]
[1722219450244,3.8927,69200.0,69199.0,1.23090348]
[1722219450470,3.76891392,69200.0,69199.0,2.34763325]
[1722219450701,3.58046592,69200.0,69199.0,2.34763325]
[1722219450958,3.47872392,69200.0,69199.0,2.37672325]
[1722219451157,1.34827992,69200.0,69199.0,2.37672325]
[1722219451428,1.20259992,69200.0,69199.0,2.37672325]
[1722219451660,1.12975992,69200.0,69199.0,2.30308797]
[1722219451906,1.02801792,69200.0,69199.0,2.37672325]
[1722219452116,0.87337392,69200.0,69199.0,2.37672325]
[1722219452348,0.12921476,69200.0,69199.0,2.31482325]
[1722219452582,0.00552419,69218.0,69204.0,0.11709728]
[1722219452811,0.002,69239.0,69226.0,0.61688728]
[1722219453042,0.002,69239.0,69235.0,0.61684128]
[1722219453281,0.45095529,69243.0,69235.0,0.61684128]
[1722219453282,0.00017657,69243.0,69242.0,0.029462]
[1722219453547,0.01015,69259.0,69243.0,0.23263228]
[1722219453548,0.50273357,69244.0,69243.0,0.23263228]
[1722219453775,0.50273357,69244.0,69243.0,1.51844447]
[1722219453776,0.3922891,69244.0,69243.0,1.51844447]
[1722219454009,0.3194491,69244.0,69243.0,1.52528862]
[1722219454245,0.3194491,69244.0,69243.0,1.48346643]
[1722219454474,0.3194491,69244.0,69243.0,1.84832063]
[1722219454714,0.3194491,69244.0,69243.0,1.88762435]
[1722219454940,0.3194491,69244.0,69243.0,1.9985802]
[1722219455183,0.0932681,69244.0,69243.0,2.14201492]
[1722219455408,0.01015,69259.0,69253.0,0.70416128]
[1722219455643,0.01015,69259.0,69258.0,0.76362728]
[1722219455891,0.00794,69264.0,69263.0,0.11709728]
[1722219456125,0.00794,69264.0,69263.0,0.92549523]
[1722219456359,0.00794,69264.0,69263.0,1.69984288]
[1722219456602,0.00794,69264.0,69263.0,0.94839849]
[1722219456835,0.07184,69264.0,69263.0,0.37089149]
[1722219457058,0.07184,69264.0,69263.0,0.10676409]
[1722219457313,0.07184,69264.0,69263.0,0.00676409]
[1722219457314,0.08293572,69264.0,69263.0,0.00676409]
[1722219457553,0.11058732,69264.0,69263.0,0.00676409]
[1722219457805,0.11058732,69264.0,69252.0,0.0236174]
[1722219457806,0.01109572,69262.0,69252.0,0.0236174]
[1722219458042,0.09450762,69264.0,69257.0,0.115511]
[1722219458043,0.07184,69264.0,69257.0,0.115511]
[1722219458280,0.07184,69264.0,69253.0,0.0015542]
[1722219458281,0.00794,69264.0,69263.0,0.6106314]
[1722219458517,0.00794,69264.0,69263.0,0.8416344]
[1722219458751,0.00794,69264.0,69263.0,1.0793971]
[1722219458983,0.00794,69264.0,69263.0,1.39803538]
[1722219459208,0.00794,69264.0,69263.0,1.49803538]
[1722219459440,0.00794,69264.0,69263.0,1.52103538]
[1722219459679,0.0156014,69273.0,69270.0,1.30376268]
[1722219459938,0.0156014,69273.0,69270.0,1.1081474]
[1722219460186,0.0156014,69273.0,69270.0,1.09127101]
[1722219460427,0.0156014,69273.0,69270.0,1.06827101]
[1722219460654,0.0156014,69273.0,69270.0,0.91517101]
[1722219460901,0.01254896,69271.0,69270.0,0.10674101]
[1722219461128,0.01254896,69271.0,69270.0,0.00674101]
[1722219461129,0.51879984,69271.0,69270.0,0.00674101]
[1722219461355,0.75304484,69271.0,69270.0,0.00674101]
[1722219461570,0.75304484,69271.0,69252.0,0.115518]
[1722219461571,0.01109572,69259.0,69252.0,0.0015542]
[1722219461800,0.01309572,69252.0,69251.0,0.0015542]
[1722219462025,0.01109572,69255.0,69254.0,0.0015542]
[1722219462249,0.15626232,69255.0,69254.0,0.0015542]
[1722219462530,0.18194732,69255.0,69254.0,0.00675125]
[1722219462749,0.0263826,69245.0,69244.0,0.231066]
[1722219462977,0.17994732,69255.0,69252.0,0.11552]
[1722219463222,0.0263826,69254.0,69251.0,0.014]
[1722219463453,0.0276516,69252.0,69251.0,0.0015542]
[1722219463676,0.01109572,69251.0,69250.0,0.115522]
[1722219463896,0.03874732,69254.0,69253.0,0.115518]
[1722219464150,0.04074732,69253.0,69252.0,0.0015542]
[1722219464383,0.03874732,69248.0,69247.0,0.115528]
[1722219464621,0.01109572,69251.0,69250.0,0.115522]
[1722219464848,0.03874732,69251.0,69250.0,0.115522]
[1722219465311,0.1412,69255.0,69254.0,0.346549]
[1722219465312,0.15229572,69255.0,69254.0,0.346549]
[1722219465557,0.1412,69255.0,69254.0,0.577582]
[1722219466047,0.23243024,69271.0,69265.0,0.346494]
[1722219466048,0.0276516,69266.0,69265.0,0.346494]
[1722219466454,0.0276516,69266.0,69259.0,0.231015]
[1722219466455,0.03874732,69265.0,69264.0,0.0015542]
[1722219466458,0.10554732,69265.0,69264.0,0.0015542]
[1722219466691,0.03874732,69261.0,69260.0,0.1170602]
[1722219466921,0.03874732,69261.0,69260.0,0.3480732]
[1722219467378,0.0648,69265.0,69258.0,0.1531]
[1722219467640,0.03874732,69272.0,69270.0,0.34647]
[1722219467866,0.0764014,69273.0,69270.0,0.57745]
[1722219468117,0.0764014,69273.0,69270.0,0.86755]
[1722219468352,0.00125324,69271.0,69270.0,0.83055]
[1722219468582,0.00125324,69271.0,69270.0,0.44647]
[1722219468583,0.04000056,69271.0,69270.0,0.44647]
[1722219469017,0.04000056,69271.0,69265.0,0.230995]
[1722219469232,0.01109572,69258.0,69257.0,0.115511]
[1722219469441,0.0263826,69255.0,69254.0,0.115516]
[1722219469652,0.03874732,69255.0,69254.0,0.346549]
[1722219470299,0.03874732,69255.0,69254.0,0.577582]
[1722219470300,0.0263826,69255.0,69254.0,0.577582]
[1722219470713,0.062,69258.0,69257.0,0.80858]
[1722219471124,0.0806,69269.0,69257.0,0.80858]
[1722219471125,0.1069826,69269.0,69268.0,0.346479]
[1722219471335,0.11934732,69269.0,69268.0,0.346479]
[1722219471567,0.18134732,69269.0,69268.0,0.346479]
[1722219472028,0.03874732,69265.0,69264.0,0.1155]
[1722219472287,0.1426,69269.0,69261.0,0.1170592]
[1722219472288,0.0276516,69262.0,69261.0,0.1170592]
[1722219472495,0.03874732,69262.0,69261.0,0.1]
[1722219472707,0.0276516,69262.0,69261.0,0.1]
[1722219472988,0.03874732,69262.0,69261.0,0.0015542]
[1722219473219,0.03874732,69262.0,69252.0,0.231038]
[1722219473220,0.01309572,69254.0,69253.0,0.1015542]
[1722219473430,0.04074732,69254.0,69253.0,0.0015542]
[1722219473674,0.04074732,69254.0,69238.0,0.0236174]
[1722219473675,0.01109572,69246.0,69239.0,0.2326362]
[1722219473985,0.01109572,69246.0,69245.0,0.346594]
[1722219474085,0.0276516,69243.0,69242.0,0.115536]
[1722219474319,0.01109572,69241.0,69240.0,0.0015542]
[1722219474588,0.04074732,69238.0,69237.0,0.0015542]
[1722219475052,0.04074732,69238.0,69230.0,0.289022]
[1722219475053,0.03874732,69232.0,69231.0,0.0015542]
[1722219475288,0.21970032,69232.0,69231.0,0.0015542]
[1722219475535,0.45080732,69232.0,69231.0,0.0015542]
[1722219475806,0.29950032,69232.0,69231.0,0.0015542]
[1722219476076,0.18394732,69232.0,69231.0,0.0015542]
[1722219476277,0.1728516,69232.0,69231.0,0.0015542]
[1722219476481,0.53260732,69232.0,69231.0,0.0015542]
[1722219476699,0.18594732,69232.0,69231.0,0.0015542]
[1722219476928,0.30150032,69232.0,69231.0,0.0125542]
[1722219477162,0.18594732,69232.0,69231.0,0.0125542]
[1722219477362,0.1748516,69232.0,69231.0,0.0125542]
[1722219477600,0.30150032,69232.0,69231.0,0.0125542]
[1722219477799,0.2904046,69232.0,69231.0,0.0125542]
[1722219477971,0.76371432,69232.0,69231.0,0.011]
[1722219478205,0.76371432,69232.0,69222.0,0.0015542]
[1722219478206,0.0912516,69223.0,69222.0,0.3482642]
[1722219478311,0.0912516,69223.0,69222.0,0.57785]
[1722219478832,0.0912516,69223.0,69222.0,0.80899]
[1722219479050,0.0912516,69223.0,69222.0,0.57785]
[1722219479254,0.11393319,69223.0,69222.0,0.58975148]
[1722219479493,0.12502891,69223.0,69222.0,0.60375148]
[1722219479740,0.0636,69223.0,69222.0,0.60375148]
[1722219479989,0.0798,69232.0,69222.0,0.60375148]
[1722219479990,0.0628,69232.0,69231.0,0.358665]
[1722219480115,0.01236472,69237.0,69236.0,0.346639]
[1722219480116,0.0263826,69237.0,69236.0,0.346639]
[1722219480318,0.0891826,69238.0,69237.0,0.115545]
[1722219480575,0.0628,69246.0,69238.0,0.03890428]
[1722219480703,0.0263826,69249.0,69248.0,0.115526]
[1722219480900,0.0263826,69249.0,69248.0,0.82044384]
[1722219481103,0.03874732,69249.0,69248.0,0.58939084]
[1722219481308,0.083,69252.0,69251.0,0.115521]
[1722219481554,0.0891826,69253.0,69252.0,0.5776]
[1722219481555,0.10154732,69253.0,69252.0,0.5776]
[1722219481748,0.0891826,69253.0,69252.0,0.80864]
[1722219482015,0.0891826,69253.0,69252.0,0.82037159]
[1722219482172,0.0263826,69257.0,69256.0,0.807591]
[1722219482372,0.01236472,69259.0,69252.0,0.01173159]
[1722219482373,0.01109572,69259.0,69258.0,0.11551]
[1722219482688,0.0649,69260.0,69259.0,0.57754]
[1722219482870,0.002,69262.0,69261.0,0.346515]
[1722219483071,0.0276516,69267.0,69266.0,0.346489]
[1722219483301,0.0276516,69267.0,69266.0,0.577482]
[1722219483521,0.0276516,69267.0,69266.0,0.81712421]
[1722219483725,0.083,69268.0,69267.0,0.577475]
[1722219483726,0.001269,69268.0,69267.0,0.577475]
[1722219483942,0.0657,69269.0,69268.0,0.577465]
[1722219484126,0.00628,69279.0,69270.0,0.6000674]
[1722219484287,0.01234896,69271.0,69270.0,0.90743]
[1722219484494,0.01234896,69271.0,69270.0,0.67645]
[1722219484699,0.01234896,69271.0,69270.0,0.68806507]
[1722219484700,0.00125324,69271.0,69270.0,0.68806507]
[1722219484900,0.04000056,69271.0,69270.0,0.01161507]
[1722219485100,0.02890484,69271.0,69270.0,0.34647]
[1722219485303,0.02890484,69271.0,69270.0,0.36047]
[1722219485478,0.04200056,69271.0,69270.0,0.3720798]
[1722219485680,0.04200056,69271.0,69270.0,0.0116098]
[1722219486041,0.29838856,69271.0,69270.0,0.0116098]
[1722219486256,0.1944724,69271.0,69270.0,0.0216098]
[1722219486472,0.55203212,69271.0,69270.0,0.01]
[1722219486676,0.78300812,69271.0,69270.0,0.0216098]
[1722219486892,0.5409364,69271.0,69270.0,0.01]
[1722219487122,0.1912034,69271.0,69270.0,0.35647]
[1722219487320,0.1167724,69271.0,69270.0,0.35647]
[1722219487537,0.1167724,69271.0,69270.0,0.35808651]
[1722219487756,0.0239208,69271.0,69270.0,0.58906651]
[1722219487942,0.0239208,69271.0,69270.0,0.76508391]
[1722219488142,0.0239208,69271.0,69270.0,1.12906391]
[1722219488393,0.0239208,69271.0,69270.0,0.93004651]
[1722219488394,0.00125324,69271.0,69270.0,0.93004651]
[1722219488598,0.00125324,69271.0,69270.0,1.37104391]
[1722219488799,0.00125324,69271.0,69270.0,1.36104391]
[1722219489089,0.00125324,69271.0,69270.0,1.46267919]
[1722219489313,0.00125324,69271.0,69270.0,1.45167919]
[1722219489518,0.00125324,69271.0,69270.0,1.28527919]
[1722219489732,0.00125324,69271.0,69270.0,1.43767919]
[1722219490136,0.00125324,69271.0,69270.0,1.55769824]
[1722219490941,0.00125324,69271.0,69270.0,1.57169824]
[1722219491155,0.00125324,69271.0,69270.0,1.80267824]
[1722219491356,0.00125324,69271.0,69270.0,2.10267824]
[1722219491559,0.00125324,69271.0,69270.0,2.11167824]
[1722219491773,0.02391452,69271.0,69270.0,2.10267824]
[1722219491931,0.02391452,69271.0,69270.0,1.80267824]
[1722219492145,0.02391452,69271.0,69270.0,1.81667824]
[1722219492746,5.2e-07,69271.0,69270.0,1.94411365]
[1722219492905,5.2e-07,69271.0,69270.0,1.89617824]
[1722219493105,0.00628,69279.0,69272.0,1.53400368]
[1722219493327,2.5e-07,69282.0,69281.0,0.84100968]
[1722219493536,0.07060738,69287.0,69286.0,1.30281968]
[1722219493747,0.07060738,69287.0,69286.0,1.70887547]
[1722219493944,3.8e-07,69287.0,69286.0,1.74338367]
[1722219494148,0.00815,69314.0,69286.0,1.74338367]
[1722219494149,0.00815,69314.0,69299.0,0.0236174]
[1722219494364,0.002,69319.0,69299.0,0.0236174]
[1722219494365,0.00814,69325.0,69324.0,0.98362427]
[1722219494575,0.00814,69325.0,69324.0,1.08362427]
[1722219494781,0.00814,69325.0,69324.0,0.91890578]
[1722219494996,0.00814,69325.0,69324.0,0.68810578]
[1722219495204,0.00814,69325.0,69324.0,0.94252318]
[1722219495422,0.00814,69325.0,69324.0,1.15505585]
[1722219495830,0.00814,69325.0,69324.0,1.21982057]
[1722219496042,0.00814,69325.0,69324.0,0.93449291]
[1722219496238,0.00814,69325.0,69324.0,0.55129291]
[1722219496447,0.00814,69325.0,69324.0,0.78209291]
[1722219496688,0.00814,69325.0,69324.0,1.25292819]
[1722219496886,0.00814,69325.0,69324.0,1.16529291]
[1722219497087,0.00814,69325.0,69324.0,0.11129891]
[1722219497295,0.00814,69325.0,69324.0,0.24069891]
[1722219497296,0.07114,69325.0,69324.0,0.24069891]
[1722219497497,0.07114,69325.0,69324.0,0.48549891]
[1722219497699,0.00814,69325.0,69324.0,0.71629891]
[1722219497932,0.00814,69325.0,69324.0,0.95671631]
[1722219498136,0.00814,69325.0,69324.0,1.10911631]
[1722219498346,0.00814,69325.0,69324.0,1.12311631]
[1722219498546,0.00814,69325.0,69324.0,1.16415019]
[1722219498763,0.00814,69325.0,69324.0,1.65611116]
[1722219498969,0.00814,69325.0,69324.0,1.52885159]
[1722219499175,0.00814,69325.0,69324.0,1.49625019]
[1722219499379,0.00814,69325.0,69324.0,1.58354325]
[1722219500262,1.7e-07,69336.0,69335.0,0.346144]
[1722219500445,1.7e-07,69336.0,69335.0,0.8529244]
[1722219500624,1.7e-07,69336.0,69335.0,0.73213857]
[1722219500952,1.7e-07,69336.0,69335.0,0.92217241]
[1722219501103,1.7e-07,69336.0,69335.0,0.96878981]
[1722219501303,1.7e-07,69336.0,69335.0,1.43418466]
[1722219501513,1.7e-07,69336.0,69335.0,1.58392509]
[1722219501711,1.7e-07,69336.0,69335.0,1.20928981]
[1722219501913,1.7e-07,69336.0,69335.0,1.52768809]
[1722219502243,0.07512979,69369.0,69335.0,1.52768809]
[1722219502244,0.00398905,69347.0,69346.0,0.0236174]
[1722219502401,0.00398905,69347.0,69346.0,0.9835614]
[1722219502602,0.00398905,69347.0,69346.0,1.35171267]
[1722219503092,0.00398905,69347.0,69346.0,1.32871267]
[1722219503313,0.00398905,69347.0,69346.0,1.30509527]
[1722219503550,0.00398905,69347.0,69346.0,0.92196827]
[1722219503763,0.00398905,69347.0,69346.0,1.32871267]
[1722219503977,0.00398905,69347.0,69346.0,1.35171267]
[1722219504291,0.00398905,69347.0,69346.0,1.38732307]
[1722219504439,5e-08,69350.0,69349.0,1.07116168]
[1722219504668,5e-08,69350.0,69349.0,1.37480543]
[1722219504900,5e-08,69350.0,69349.0,1.42479243]
[1722219505130,5e-08,69350.0,69349.0,1.3872304]
[1722219505351,5e-08,69350.0,69349.0,1.654552]
[1722219505571,5e-08,69350.0,69349.0,1.59192771]
[1722219505782,5e-08,69350.0,69349.0,1.52975528]
[1722219505997,5e-08,69350.0,69349.0,1.45312]
[1722219506243,5e-08,69350.0,69349.0,1.51875528]
[1722219506458,5e-08,69350.0,69349.0,1.44512]
[1722219506672,5e-08,69350.0,69349.0,1.45912]
[1722219506896,5e-08,69350.0,69349.0,1.989837]
[1722219507111,5e-08,69350.0,69349.0,1.90937957]
[1722219507549,5e-08,69350.0,69349.0,1.45912]
[1722219507772,5e-08,69350.0,69349.0,1.81209657]
[1722219507986,5e-08,69350.0,69349.0,1.54731731]
[1722219508220,5e-08,69350.0,69349.0,1.87237957]
[1722219508418,5e-08,69350.0,69349.0,1.96001485]
[1722219508617,5e-08,69350.0,69349.0,2.10309657]
[1722219509040,5e-08,69350.0,69349.0,2.19073185]
[1722219509244,5e-08,69350.0,69349.0,1.82375528]
[1722219509444,5e-08,69350.0,69349.0,1.78909657]
[1722219509640,5e-08,69350.0,69349.0,2.17673185]
[1722219509851,0.01436472,69379.0,69359.0,1.44614268]
[1722219509852,4e-08,69360.0,69359.0,1.44614268]
[1722219510073,4e-08,69360.0,69359.0,2.15776825]
[1722219510437,4e-08,69360.0,69359.0,2.08212492]
[1722219510655,4e-08,69360.0,69359.0,2.1697602]
[1722219510873,4e-08,69360.0,69359.0,2.1927602]
[1722219511323,0.002,69379.0,69364.0,1.76298768]
[1722219511324,4e-08,69365.0,69364.0,1.76298768]
[1722219511547,4e-08,69365.0,69364.0,2.03624725]
[1722219511784,4e-08,69365.0,69364.0,2.04820082]
[1722219512325,2.1e-07,69384.0,69365.0,0.576653]
[1722219512558,2.1e-07,69384.0,69383.0,0.72395468]
[1722219512784,2.1e-07,69384.0,69383.0,1.304514]
[1722219513031,2.1e-07,69384.0,69383.0,1.059514]
[1722219513325,2.1e-07,69384.0,69383.0,1.06947405]
[1722219513812,2.1e-07,69384.0,69383.0,0.83887005]
[1722219514055,0.02638281,69384.0,69383.0,0.45586605]
[1722219514275,0.02638281,69384.0,69383.0,0.68647005]
[1722219514711,2.1e-07,69384.0,69383.0,0.71008745]
[1722219514916,2.1e-07,69384.0,69383.0,1.06947405]
[1722219515322,2.1e-07,69384.0,69383.0,0.85287005]
[1722219515524,0.18234753,69384.0,69383.0,0.70047005]
[1722219515719,0.16998281,69384.0,69383.0,0.70047005]
[1722219515902,0.14360021,69384.0,69383.0,0.70047005]
[1722219516145,0.14360021,69384.0,69383.0,0.93107405]
[1722219516371,2.1e-07,69384.0,69383.0,1.10709145]
[1722219516814,2.1e-07,69384.0,69383.0,1.42533073]
[1722219517039,2.1e-07,69384.0,69383.0,1.44833073]
[1722219517257,2.1e-07,69384.0,69383.0,1.5985903]
[1722219517473,2.1e-07,69384.0,69383.0,1.36069545]
[1722219517694,2.1e-07,69384.0,69383.0,1.08347405]
[1722219517912,2.1e-07,69384.0,69383.0,1.17110933]
[1722219518372,2.1e-07,69384.0,69383.0,1.19472673]
[1722219518609,2.1e-07,69384.0,69383.0,1.43933073]
[1722219518854,2.1e-07,69384.0,69383.0,1.8431943]
[1722219519191,0.01262256,69395.0,69394.0,1.30120368]
[1722219519396,0.01262256,69395.0,69394.0,1.65477068]
[1722219519652,0.01262256,69395.0,69394.0,1.66463523]
[1722219519812,0.4,69396.0,69394.0,1.66463523]
[1722219519813,0.29963617,69396.0,69395.0,1.30119068]
[1722219520026,0.00830684,69417.0,69416.0,0.2912644]
[1722219520195,0.00830684,69417.0,69416.0,1.00021453]
[1722219520404,0.03595844,69417.0,69416.0,0.26545134]
[1722219520642,0.00830684,69417.0,69416.0,0.6908276]
[1722219520844,0.00830684,69417.0,69416.0,0.5384276]
[1722219521044,0.00830684,69417.0,69416.0,0.9994156]
[1722219521243,0.03595844,69417.0,69416.0,0.76880467]
[1722219521454,0.00830684,69417.0,69416.0,0.92920467]
[1722219521663,0.00830684,69417.0,69416.0,0.15036771]
[1722219521664,0.03595844,69417.0,69416.0,0.15036771]
[1722219521861,0.03468944,69417.0,69416.0,0.26700955]
[1722219522067,0.03468944,69417.0,69416.0,0.27500955]
[1722219522271,0.03468944,69417.0,69416.0,0.39025655]
[1722219522487,0.00830684,69417.0,69416.0,1.07683511]
[1722219522725,0.00830684,69417.0,69416.0,1.09083511]
[1722219522933,0.00830684,69417.0,69416.0,1.43258179]
[1722219523138,0.00830684,69417.0,69416.0,0.93632971]
[1722219523553,0.00830684,69417.0,69416.0,0.86034111]
[1722219523760,0.19025416,69417.0,69416.0,0.64999755]
[1722219523977,0.17915844,69417.0,69416.0,0.38944711]
[1722219524183,0.20177507,69417.0,69416.0,0.38944711]
[1722219524381,0.19025416,69417.0,69416.0,0.38944711]
[1722219524588,0.00830684,69417.0,69416.0,0.38944711]
[1722219524797,0.00830684,69417.0,69416.0,0.88979696]
[1722219525014,0.00830684,69417.0,69416.0,1.04219696]
[1722219525251,0.00830684,69417.0,69416.0,1.10283511]
[1722219525475,0.00830684,69417.0,69416.0,1.44458179]
[1722219525687,0.00830684,69417.0,69416.0,1.39506776]
[1722219525911,0.00830684,69417.0,69416.0,1.48270304]
[1722219526126,0.03468944,69417.0,69416.0,0.98875621]
[1722219526345,0.25141923,69417.0,69416.0,0.04370611]
[1722219526554,0.17628944,69417.0,69416.0,0.149247]
[1722219526764,0.17628944,69417.0,69416.0,0.61838415]
[1722219527218,0.26378395,69417.0,69416.0,0.04214915]
[1722219527452,0.0263826,69403.0,69402.0,0.34581]
[1722219527711,0.0263826,69408.0,69407.0,0.115262]
[1722219527950,0.18362121,69417.0,69416.0,0.345741]
[1722219527951,0.19890809,69417.0,69416.0,0.345741]
[1722219528163,0.20017709,69417.0,69416.0,0.345741]
[1722219528364,0.20017709,69417.0,69416.0,0.115247]
[1722219528569,0.22636589,69417.0,69416.0,0.115247]
[1722219528774,0.22636589,69417.0,69414.0,0.0015542]
[1722219528775,0.03874732,69415.0,69414.0,0.1168042]
[1722219528991,0.03874732,69415.0,69414.0,0.0015542]
[1722219529233,0.0263826,69408.0,69407.0,0.3473402]
[1722219529456,0.0263826,69408.0,69407.0,0.1168162]
[1722219529684,0.0263826,69408.0,69407.0,0.445786]
[1722219530135,0.0263826,69408.0,69407.0,0.1]
[1722219530325,0.0263826,69408.0,69392.0,0.0015542]
[1722219530326,0.0263826,69396.0,69392.0,0.230574]
[1722219530479,0.0651,69407.0,69388.0,0.0236174]
[1722219530480,0.0263826,69397.0,69396.0,0.80696]
[1722219530675,0.0263826,69397.0,69396.0,0.6764]
[1722219530877,0.0263826,69397.0,69396.0,0.90696]
[1722219531285,0.0263826,69397.0,69396.0,0.6764]
[1722219531713,0.0263826,69392.0,69391.0,0.230577]
[1722219531913,0.0276516,69392.0,69391.0,0.345865]
[1722219532140,0.04900681,69392.0,69391.0,0.345865]
[1722219532487,0.0906826,69392.0,69391.0,0.61534628]
[1722219532694,0.0906826,69392.0,69391.0,0.576442]
[1722219532819,0.0263826,69389.0,69388.0,0.23917082]
[1722219533026,0.0263826,69389.0,69388.0,0.576467]
[1722219534650,0.0263826,69389.0,69388.0,0.34588]
[1722219534868,0.0263826,69387.0,69386.0,0.115295]
[1722219535122,0.07766472,69392.0,69376.0,0.38484428]
[1722219535123,0.1712826,69377.0,69376.0,0.38484428]
[1722219535346,0.1712826,69377.0,69367.0,0.00860377]
[1722219535347,0.1074826,69368.0,69367.0,0.00860377]
[1722219535595,0.1712826,69368.0,69367.0,0.00860377]
[1722219535796,0.1712826,69368.0,69351.0,0.230709]
[1722219535797,0.0263826,69352.0,69351.0,0.230709]
[1722219536010,0.0263826,69352.0,69351.0,0.576774]
[1722219536247,0.0263826,69352.0,69338.0,0.45077872]
[1722219536248,0.0276516,69339.0,69338.0,0.45077872]
[1722219536458,0.0263826,69339.0,69338.0,0.346129]
[1722219536665,0.0263826,69339.0,69338.0,0.576882]
[1722219537107,0.0263826,69339.0,69338.0,0.173198]
[1722219537323,0.0263826,69339.0,69338.0,0.346129]
[1722219537526,0.0263826,69340.0,69339.0,0.346125]
[1722219537730,0.0263826,69340.0,69333.0,0.00871841]
[1722219537731,0.0263826,69341.0,69340.0,0.34612]
[1722219537938,0.0263826,69341.0,69340.0,0.807614]
[1722219539035,0.001,69341.0,69340.0,1.196761]
[1722219539263,0.001,69341.0,69340.0,1.23566528]
[1722219539879,0.001,69341.0,69340.0,1.196761]
[1722219540319,0.05,69369.0,69340.0,1.196761]
[1722219540320,0.064,69369.0,69363.0,0.03890428]
[1722219540526,0.0601,69377.0,69373.0,0.03890428]
[1722219540742,0.001,69387.0,69373.0,0.03890428]
[1722219540743,0.001,69387.0,69386.0,0.345891]
[1722219540946,0.04280582,69411.0,69379.0,0.230617]
[1722219540947,0.083169,69396.0,69395.0,0.345846]
[1722219541161,0.083169,69396.0,69375.0,0.1524]
[1722219541162,0.0601,69395.0,69382.0,0.03890428]
[1722219541366,0.01236472,69394.0,69382.0,0.03890428]
[1722219541577,0.01236472,69392.0,69382.0,0.03890428]
[1722219541799,0.06336472,69394.0,69381.0,0.03790428]
[1722219542006,0.05,69394.0,69381.0,0.13790428]
[1722219542222,0.01336472,69390.0,69381.0,0.13790428]
[1722219542502,0.001269,69382.0,69381.0,0.215305]
[1722219542718,0.061369,69382.0,69381.0,0.115305]
[1722219542931,0.061369,69382.0,69381.0,0.345915]